bitfinex/quotes_SOLUSD_20220228
["timestamp","ask_amount","ask_price","bid_price","bid_amount"]
[1646037173854,85.7,89.54,89.502,6.0]
[1646037174359,85.7,89.54,89.502,8.74678921]
[1646037174555,85.7,89.54,89.51,16.7584]
[1646037174755,85.7,89.54,89.502,8.74678921]
[1646037174756,133.9868,89.569,89.511,6.0]
[1646037174957,133.9868,89.569,89.511,2.74678921]
[1646037175156,133.9868,89.569,89.502,4.74678921]
[1646037175456,133.9868,89.569,89.51,2.74678921]
[1646037175656,57.37478638,89.568,89.51,2.74678921]
[1646037175855,57.37478638,89.568,89.52,16.7565]
[1646037176056,143.07478638,89.568,89.52,16.7565]
[1646037176258,85.7,89.568,89.521,113.1]
[1646037176661,85.7,89.568,89.522,2.74678921]
[1646037176861,1.63562651,89.603,89.522,2.74678921]
[1646037177062,1.63562651,89.603,89.523,113.1]
[1646037177258,54.78322853,89.602,89.531,113.1]
[1646037177459,54.78322853,89.602,89.541,113.1]
[1646037177658,140.48322853,89.602,89.542,6.0]
[1646037178058,140.48322853,89.602,89.543,2.74678921]
[1646037178257,140.48322853,89.602,89.544,6.0]
[1646037178458,140.48322853,89.602,89.55,16.75]
[1646037178659,140.48322853,89.602,89.551,6.0]
[1646037178860,140.48322853,89.602,89.551,5.5]
[1646037179257,140.48322853,89.602,89.543,2.74678921]
[1646037180260,140.48322853,89.602,89.545,103.1]
[1646037180461,140.48322853,89.602,89.544,6.0]
[1646037180462,140.48322853,89.602,89.56,16.7505]
[1646037180659,140.48322853,89.602,89.561,6.0]
[1646037181261,140.48322853,89.602,89.549,103.1]
[1646037181461,140.48322853,89.602,89.551,103.1]
[1646037181662,140.48322853,89.602,89.553,103.1]
[1646037181861,140.48322853,89.602,89.555,103.1]
[1646037182064,140.48322853,89.602,89.557,103.1]
[1646037182261,140.48322853,89.602,89.558,6.0]
[1646037182463,1.81879474,89.601,89.57,16.7494]
[1646037182662,1.6441089,89.6,89.57,16.7494]
[1646037182867,85.7,89.601,89.57,16.7494]
[1646037185863,1.50845581,89.6,89.554,6.0]
[1646037186162,1.77166866,89.599,89.551,6.0]
[1646037186765,1.77166866,89.599,89.55,16.752]
[1646037187065,1.77166866,89.599,89.422,7.0]
[1646037187066,1.5951806,89.598,89.53,16.756]
[1646037187269,4.466,89.597,89.53,16.756]
[1646037187467,6.38953011,89.597,89.5,16.01]
[1646037187666,207.92953011,89.597,89.501,6.0]
[1646037187867,4.25675973,89.596,89.491,6.0]
[1646037188067,1.84959857,89.589,89.49,16.7635]
[1646037188268,6.25556444,89.588,89.49,16.7635]
[1646037188469,113.1,89.587,89.49,16.7635]
[1646037188668,113.1,89.587,89.492,5.20640295]
[1646037188669,55.6812586,89.585,89.492,5.20640295]
[1646037188867,6.35554837,89.584,89.494,113.1]
[1646037189071,1.78458644,89.583,89.495,6.0]
[1646037189270,1.53329947,89.582,89.493,6.0]
[1646037189470,1.77216,89.581,89.494,2.74678921]
[1646037189672,1.66715607,89.58,89.495,6.0]
[1646037189872,1.66715607,89.58,89.496,113.1]
[1646037190072,1.71464794,89.579,89.497,119.1]
[1646037190295,1.65215197,89.578,89.497,113.1]
[1646037190496,85.7,89.578,89.5,16.7621]
[1646037190695,1.85041166,89.577,89.501,6.0]
[1646037190894,85.7,89.577,89.501,6.0]
[1646037191095,1.6874611,89.576,89.501,6.0]
[1646037191296,1.6874611,89.576,89.498,6.0]
[1646037191595,1.60508825,89.575,89.498,6.0]
[1646037191795,1.56128761,89.574,89.498,6.0]
[1646037192195,1.56128761,89.574,89.496,113.1]
[1646037192398,1.56128761,89.574,89.497,119.1]
[1646037192596,1.82569889,89.573,89.52,16.7576]
[1646037193398,1.82569889,89.573,89.521,6.0]
[1646037193696,1.82569889,89.573,89.53,16.7569]
[1646037195996,85.7,89.573,89.53,16.7569]
[1646037196197,85.7,89.581,89.53,16.7569]
[1646037196397,1.87031232,89.58,89.53,16.7569]
[1646037196598,1.87031232,89.58,89.51,16.7598]
[1646037196799,85.7,89.58,89.511,6.0]
[1646037196997,1.59912856,89.579,89.5,55.8585]
[1646037197197,85.7,89.579,89.501,6.0]
[1646037197397,47.3661,89.582,89.501,6.0]
[1646037197398,1.50391626,89.578,89.501,6.0]
[1646037197599,85.7,89.578,89.501,6.0]
[1646037197799,1.45416805,89.577,89.501,6.0]
[1646037198003,87.15416805,89.577,89.501,6.0]
[1646037198201,1.78149674,89.576,89.501,6.0]
[1646037198402,87.48149674,89.576,89.501,6.0]
[1646037198703,1.76240515,89.575,89.52,6.7591]
[1646037198901,87.46240515,89.575,89.52,6.7591]
[1646037199102,1.90778919,89.574,89.52,6.7591]
[1646037199303,1.51384889,89.573,89.52,6.7591]
[1646037199502,1.66167025,89.572,89.52,6.7591]
[1646037200507,1.58202289,89.57,89.52,6.7591]
[1646037201704,87.28202289,89.57,89.52,6.7591]
[1646037201904,85.7,89.57,89.52,6.7591]
[1646037202105,1.81342404,89.569,89.52,6.7591]
[1646037202506,85.7,89.569,89.52,6.7591]
[1646037202806,1.86899256,89.568,89.52,6.7591]
[1646037203404,1.86899256,89.568,89.53,16.7573]
[1646037203607,85.7,89.568,89.53,16.7573]
[1646037204206,85.7,89.568,89.531,2.74678921]
[1646037204406,85.7,89.568,89.54,16.7519]
[1646037204606,85.7,89.568,89.541,113.1]
[1646037204806,85.7,89.568,89.551,113.1]
[1646037205006,85.7,89.568,89.553,113.1]
[1646037205206,85.7,89.568,89.555,113.1]
[1646037205405,85.7,89.568,89.56,16.01]
[1646037205708,85.7,89.568,89.561,8.73896084]
[1646037206506,85.7,89.568,89.562,2.74678921]
[1646037206706,85.7,89.568,89.563,6.0]
[1646037207306,85.7,89.568,89.562,6.0]
[1646037209609,85.7,89.568,89.563,0.13694498]
[1646037209809,85.7,89.568,89.561,6.0]
[1646037210609,85.7,89.568,89.562,0.1369465]
[1646037213213,55.32689147,89.581,89.57,16.749]
[1646037213415,55.32689147,89.581,89.571,6.0]
[1646037213612,55.32689147,89.581,89.572,2.47845515]
[1646037213815,55.32689147,89.581,89.573,6.0]
[1646037214112,55.32689147,89.581,89.57,16.749]
[1646037214312,55.32689147,89.581,89.571,6.0]
[1646037215113,55.32689147,89.581,89.572,2.47845515]
[1646037215314,55.32689147,89.581,89.573,6.0]
[1646037215918,1.94007146,89.599,89.573,6.0]
[1646037216316,105.0,89.598,89.55,16.01]
[1646037216541,1.46449757,89.597,89.54,16.01]
[1646037216920,50.43108177,89.596,89.54,16.7551]
[1646037217118,1.42890774,89.595,89.54,16.7551]
[1646037218320,1.42890774,89.595,89.541,7.03132195]
[1646037218522,1.42890774,89.595,89.55,16.7506]
[1646037218723,1.42890774,89.595,89.551,6.0]
[1646037218921,1.42890774,89.595,89.541,6.0]
[1646037219321,1.42890774,89.595,89.53,71.8498]
[1646037219322,1.42890774,89.595,89.533,113.1]
[1646037219521,1.42890774,89.595,89.535,113.1]
[1646037219722,1.42890774,89.595,89.536,119.1]
[1646037219922,1.42890774,89.595,89.537,6.0]
[1646037220622,1.42890774,89.595,89.56,16.7507]
[1646037222831,1.84307518,89.593,89.53,55.8398]
[1646037223928,1.84307518,89.593,89.54,16.754]
[1646037227854,1.84307518,89.593,89.541,6.0]
[1646037228054,1.84307518,89.593,89.55,16.7513]
[1646037228656,1.84307518,89.593,89.551,6.0]
[1646037228956,1.84307518,89.593,89.541,6.0]
[1646037229354,1.84307518,89.593,89.536,6.0]
[1646037229554,1.84307518,89.593,89.56,16.7509]
[1646037235461,1.84307518,89.593,89.561,6.0]
[1646037235661,1.84307518,89.593,89.57,16.7493]
[1646037236463,27.3756,89.633,89.571,8.74678921]
[1646037236464,25.08050356,89.632,89.571,8.74678921]
[1646037236668,1.89792381,89.646,89.581,67.82]
[1646037236865,1.75104966,89.699,89.583,67.82]
[1646037237063,1.92571735,89.698,89.588,180.92]
[1646037237264,44.00673848,89.651,89.6,16.01]
[1646037237462,44.00673848,89.651,89.601,6.0]
[1646037238263,4.463,89.697,89.601,6.0]
[1646037238464,3.07719838,89.767,89.66,2.74678921]
[1646037238664,1.6421314,89.783,89.68,113.1]
[1646037238862,1.6421314,89.783,89.69,16.01]
[1646037239063,1.6421314,89.783,89.7,16.01]
[1646037239265,1.6421314,89.783,89.71,16.01]
[1646037239464,60.90938895,89.775,89.72,16.01]
[1646037239664,1.6421314,89.783,89.721,6.0]
[1646037240066,1.6421314,89.783,89.721,157.43907535]
[1646037240264,1.6421314,89.783,89.722,154.79474202]
[1646037240464,1.6421314,89.783,89.723,6.0]
[1646037240666,1.6421314,89.783,89.724,4.456]
[1646037240866,1.6421314,89.783,89.725,6.0]
[1646037241065,1.6421314,89.783,89.726,4.456]
[1646037241366,1.6421314,89.783,89.74,16.01]
[1646037241566,1.6421314,89.783,89.741,6.0]
[1646037242266,1.6421314,89.783,89.742,4.456]
[1646037242565,54.83824122,89.775,89.75,16.7146]
[1646037242766,54.83824122,89.775,89.751,4.456]
[1646037243569,54.83824122,89.775,89.75,16.7146]
[1646037246273,1.58182581,89.774,89.653,28.0389]
[1646037246473,1.58182581,89.774,89.7,16.01]
[1646037246673,2.74678921,89.773,89.7,16.01]
[1646037247072,2.74678921,89.773,89.701,4.457]
[1646037247473,1.58182581,89.774,89.701,4.457]
[1646037247672,1.58182581,89.774,89.702,6.0]
[1646037247873,1.58182581,89.774,89.703,4.457]
[1646037248073,1.58182581,89.774,89.704,6.0]
[1646037248277,1.58182581,89.774,89.705,4.457]
[1646037248474,1.58182581,89.774,89.706,6.0]
[1646037248874,1.58182581,89.774,89.71,16.7215]
[1646037249276,1.58182581,89.774,89.711,6.0]
[1646037249675,2.74678921,89.773,89.67,55.7497]
[1646037249875,2.74678921,89.773,89.683,6.0]
[1646037250875,2.74678921,89.773,89.671,6.0]
[1646037251074,1.62016996,89.772,89.69,16.7249]
[1646037251577,2.74,89.771,89.691,6.0]
[1646037251976,113.1,89.769,89.691,6.0]
[1646037252178,1.69870713,89.768,89.672,6.0]
[1646037252378,4.44549634,89.768,89.672,6.0]
[1646037252580,1.69870713,89.768,89.672,6.0]
[1646037252778,2.74678921,89.767,89.672,6.0]
[1646037253378,1.69870713,89.768,89.68,16.727]
[1646037253578,1.69870713,89.768,89.681,6.0]
[1646037254278,1.69870713,89.768,89.672,6.0]
[1646037254878,1.69870713,89.768,89.672,8.59520768]
[1646037255481,10.0,89.7,89.69,16.7254]
[1646037255685,10.0,89.7,89.691,6.55374481]
[1646037258782,10.0,89.7,89.692,4.459]
[1646037258983,10.0,89.7,89.693,6.0]
[1646037259382,10.0,89.7,89.691,6.55374481]
[1646037259785,10.0,89.7,89.692,4.459]
[1646037259984,10.0,89.7,89.693,6.0]
[1646037260183,10.0,89.7,89.694,4.458]
[1646037260383,10.0,89.7,89.695,6.0]
[1646037260583,10.0,89.7,89.696,4.458]
[1646037260784,10.0,89.7,89.697,6.0]
[1646037260983,10.0,89.7,89.698,4.458]
[1646037261183,10.0,89.7,89.699,6.0]
[1646037261785,10.0,89.7,89.693,6.0]
[1646037262484,65.1761693,89.7,89.694,4.458]
[1646037262684,65.1761693,89.7,89.695,6.0]
[1646037262885,65.1761693,89.7,89.696,4.458]
[1646037263088,65.1761693,89.7,89.691,0.55374481]
[1646037263285,65.1761693,89.7,89.691,6.55374481]
[1646037263485,65.1761693,89.7,89.691,0.55374481]
[1646037263684,65.1761693,89.7,89.671,4.458]
[1646037263887,65.1761693,89.7,89.672,6.0]
[1646037264094,65.1761693,89.7,89.673,4.46]
[1646037264888,65.1761693,89.7,89.674,6.0]
[1646037265091,65.1761693,89.7,89.68,16.7278]
[1646037265304,65.1761693,89.7,89.681,4.458]
[1646037265707,65.1761693,89.7,89.64,55.7683]
[1646037265907,65.1761693,89.7,89.651,6.0]
[1646037266406,65.1761693,89.7,89.652,4.46]
[1646037266605,65.1761693,89.7,89.653,6.0]
[1646037266807,65.1761693,89.7,89.654,4.46]
[1646037267008,65.1761693,89.7,89.655,6.0]
[1646037267206,65.1761693,89.7,89.656,4.46]
[1646037267410,65.1761693,89.7,89.657,6.0]
[1646037267609,65.1761693,89.7,89.66,16.7305]
[1646037267811,65.1761693,89.7,89.661,10.46]
[1646037268006,1.71285761,89.699,89.63,18.75678921]
[1646037268211,1.71285761,89.699,89.63,16.01]
[1646037268408,10.0,89.7,89.63,18.84448564]
[1646037268608,10.0,89.7,89.631,4.461]
[1646037268810,1.82119197,89.699,89.64,16.7344]
[1646037269013,1.4682496,89.697,89.64,16.7344]
[1646037269212,9.7082496,89.697,89.64,16.7344]
[1646037269811,9.7082496,89.697,89.641,4.46]
[1646037270312,9.7082496,89.697,89.63,16.7369]
[1646037270511,9.7082496,89.697,89.61,71.7974]
[1646037270712,46.8454,89.696,89.611,6.0]
[1646037270911,1.7783435,89.695,89.611,6.0]
[1646037271110,4.461,89.694,89.611,6.0]
[1646037271312,4.461,89.694,89.612,4.461]
[1646037271511,4.461,89.694,89.613,6.0]
[1646037271711,4.461,89.694,89.614,4.461]
[1646037271910,4.461,89.694,89.615,6.0]
[1646037272112,4.461,89.694,89.616,4.461]
[1646037272412,4.461,89.694,89.617,6.0]
[1646037272614,1.7783435,89.695,89.62,16.7386]
[1646037272811,1.7783435,89.695,89.621,10.461]
[1646037273012,4.461,89.694,89.621,6.0]
[1646037274913,4.461,89.694,89.62,16.7386]
[1646037275314,4.461,89.694,89.621,6.0]
[1646037276113,4.461,89.694,89.62,16.7386]
[1646037276314,4.461,89.694,89.621,6.0]
[1646037277917,6.2393435,89.695,89.622,4.461]
[1646037278117,6.2393435,89.695,89.63,16.7366]
[1646037278317,6.2393435,89.695,89.631,6.0]
[1646037278516,6.2393435,89.695,89.63,16.7366]
[1646037278717,6.2393435,89.695,89.631,6.0]
[1646037279519,4.461,89.695,89.631,6.0]
[1646037279720,46.8454,89.696,89.64,16.7348]
[1646037280022,46.8454,89.696,89.641,6.0]
[1646037281020,46.8454,89.696,89.64,16.7348]
[1646037281421,1.80782245,89.695,89.62,32.7472]
[1646037281623,1.80782245,89.695,89.621,10.461]
[1646037283523,1.80782245,89.695,89.63,16.7366]
[1646037283724,1.80782245,89.695,89.631,10.461]
[1646037284525,46.8454,89.696,89.631,10.461]
[1646037285625,46.8454,89.696,89.64,16.7349]
[1646037285826,46.8454,89.696,89.641,10.46]
[1646037286629,1.57208486,89.695,89.641,4.46]
[1646037287226,46.8454,89.696,89.641,4.46]
[1646037287427,1.55226204,89.695,89.641,4.46]
[1646037287828,1.55226204,89.695,89.642,6.0]
[1646037288031,1.55226204,89.695,89.641,4.46]
[1646037288228,1.55226204,89.695,89.642,6.0]
[1646037288434,46.8454,89.696,89.642,6.0]
[1646037288829,46.8454,89.696,89.641,6.0]
[1646037291430,46.8454,89.696,89.65,16.7331]
[1646037291632,46.8454,89.696,89.651,60.92632651]
[1646037291829,46.8454,89.696,89.652,4.46]
[1646037292030,46.8454,89.696,89.653,6.0]
[1646037292230,46.8454,89.696,89.654,4.46]
[1646037292432,25.3364332,89.698,89.655,6.0]
[1646037292632,25.3364332,89.698,89.656,4.46]
[1646037292833,25.3364332,89.698,89.657,6.0]
[1646037293035,25.3364332,89.698,89.658,4.46]
[1646037293235,25.3364332,89.698,89.659,6.0]
[1646037293436,25.3364332,89.698,89.66,21.1896]
[1646037293634,25.3364332,89.698,89.661,6.0]
[1646037294635,25.3364332,89.698,89.66,16.7296]
[1646037295033,1.46143299,89.697,89.651,4.46]
[1646037295433,1.46143299,89.697,89.63,16.01]
[1646037295636,25.23413299,89.697,89.631,6.0]
[1646037295835,1.64719142,89.696,89.631,6.0]
[1646037296434,1.64719142,89.696,89.64,16.7343]
[1646037296634,1.64719142,89.696,89.641,6.0]
[1646037297935,1.64719142,89.696,89.65,16.7333]
[1646037300135,23.7727,89.697,89.65,16.7333]
[1646037304139,1.69707987,89.696,89.63,32.7455]
[1646037304343,23.7727,89.697,89.631,6.0]
[1646037304544,23.7727,89.697,89.64,55.7672]
[1646037304740,23.7727,89.697,89.65,16.01]
[1646037304940,25.3364332,89.698,89.651,6.0]
[1646037305342,25.3364332,89.698,89.652,2.74678921]
[1646037305542,25.3364332,89.698,89.653,119.1]
[1646037305744,25.3364332,89.698,89.653,6.0]
[1646037306061,25.3364332,89.698,89.654,2.74678921]
[1646037306242,25.3364332,89.698,89.661,50.73394787]
[1646037306440,25.3364332,89.698,89.662,6.0]
[1646037306866,25.3364332,89.698,89.661,6.0]
[1646037307566,25.3364332,89.698,89.67,16.7292]
[1646037307771,25.3364332,89.698,89.671,6.0]
[1646037309971,25.3364332,89.698,89.67,16.7292]
[1646037310570,17.50815998,89.699,89.67,8.08496268]
[1646037310774,17.50815998,89.699,89.65,16.7326]
[1646037310972,1.44708801,89.698,89.62,16.01]
[1646037311178,26.42658801,89.698,89.62,16.01]
[1646037311371,1.39566542,89.697,89.62,16.01]
[1646037312272,1.39566542,89.697,89.621,6.0]
[1646037312471,1.39566542,89.697,89.63,16.7366]
[1646037312671,1.39566542,89.697,89.631,6.0]
[1646037314072,1.39566542,89.697,89.64,16.7352]
[1646037314272,10.0,89.65,89.64,16.7352]
[1646037316877,10.0,89.65,89.641,6.0]
[1646037317278,10.0,89.65,89.64,16.7352]
[1646037317777,3.03219996,89.649,89.621,4.462]
[1646037317977,12.72887748,89.648,89.615,4.462]
[1646037318781,12.72887748,89.648,89.616,6.0]
[1646037318980,12.72887748,89.648,89.617,4.462]
[1646037319178,12.72887748,89.648,89.62,16.738]
[1646037319382,12.72887748,89.648,89.621,6.0]
[1646037319980,12.72887748,89.648,89.619,6.0]
[1646037320180,12.72887748,89.648,89.62,4.462]
[1646037320379,12.72887748,89.648,89.621,6.0]
[1646037320580,12.72887748,89.648,89.63,16.7369]
[1646037322685,12.72887748,89.648,89.631,4.462]
[1646037323085,12.72887748,89.648,89.63,16.7369]
[1646037323687,12.72887748,89.648,89.617,2.74678921]
[1646037324887,12.72887748,89.648,89.618,4.462]
[1646037325090,12.72887748,89.648,89.617,2.74678921]
[1646037325488,12.72887748,89.648,89.62,16.7404]
[1646037327188,12.72887748,89.648,89.62,6.7404]
[1646037327390,12.72887748,89.648,89.617,2.74678921]
[1646037327595,3.03219996,89.649,89.577,11.65638503]
[1646037327596,3.03219996,89.649,89.601,4.462]
[1646037327790,1.83467432,89.647,89.585,4.463]
[1646037328391,1.83467432,89.647,89.585,3.963]
[1646037328592,6.72648813,89.646,89.6,16.743]
[1646037330492,105.0,89.645,89.6,6.743]
[1646037330692,105.0,89.645,89.6,6.243]
[1646037330892,6.72648813,89.646,89.6,6.243]
[1646037331092,6.72648813,89.646,89.585,4.463]
[1646037331691,6.72648813,89.646,89.587,47.09785146]
[1646037331894,1.7579601,89.63,89.588,6.0]
[1646037332095,1.7579601,89.63,89.589,4.463]
[1646037332292,1.7579601,89.63,89.59,6.0]
[1646037332492,1.7579601,89.63,89.591,4.463]
[1646037332795,1.7579601,89.63,89.6,16.7424]
[1646037332996,1.7579601,89.63,89.601,10.463]
[1646037334397,1.7579601,89.63,89.61,16.7393]
[1646037336497,1.7579601,89.63,89.59,16.7446]
[1646037336697,1.7579601,89.63,89.591,4.463]
[1646037337700,1.7579601,89.63,89.59,16.7446]
[1646037339398,1.7579601,89.63,89.57,16.7487]
[1646037339703,4.464,89.629,89.57,16.7487]
[1646037341600,1.7579601,89.63,89.57,16.7487]
[1646037342403,1.7579601,89.579,89.57,16.7487]
[1646037342802,3.03219996,89.578,89.57,16.7487]
[1646037345408,3.03219996,89.578,89.57,4.34857894]
[1646037345607,3.03219996,89.578,89.55,16.7521]
[1646037346006,3.03219996,89.578,89.551,4.466]
[1646037347405,3.03219996,89.578,89.55,16.7521]
[1646037347406,3.03219996,89.578,89.528,112.6]
[1646037347615,3.03219996,89.578,89.53,16.7557]
[1646037349708,3.03219996,89.578,89.528,112.6]
[1646037350009,4.466,89.577,89.528,112.6]
[1646037351109,4.466,89.577,89.51,16.7594]
[1646037351311,23.5273,89.576,89.51,16.7594]
[1646037351510,6.03153224,89.575,89.51,16.7594]
[1646037352409,113.1,89.574,89.506,4.466]
[1646037352612,6.15965539,89.573,89.506,4.466]
[1646037352813,1.7579601,89.539,89.49,16.7631]
[1646037353013,1.7579601,89.539,89.491,6.0]
[1646037354412,1.7579601,89.539,89.5,16.7625]
[1646037355635,1.7579601,89.539,89.491,6.0]
[1646037355837,1.7579601,89.539,89.487,6.0]
[1646037357337,1.7579601,89.539,89.486,112.6]
[1646037357537,4.468,89.538,89.486,112.6]
[1646037357939,113.1,89.536,89.44,16.01]
[1646037358140,113.1,89.536,70.814,1.0]
[1646037358141,113.1,89.534,89.41,16.01]
[1646037358337,113.1,89.532,89.41,16.01]
[1646037358538,113.1,89.529,89.41,16.01]
[1646037358738,1.56176122,89.528,89.411,2.78700908]
[1646037359038,1.56176122,89.528,89.412,49.73114165]
[1646037359239,4.47,89.527,89.412,49.73114165]
[1646037359436,4.47,89.527,89.43,16.7742]
[1646037359639,4.47,89.527,89.431,51.3908896]
[1646037360038,4.47,89.527,89.42,55.9093]
[1646037360243,114.96207181,89.525,89.41,16.01]
[1646037360445,1.48885142,89.522,89.404,2.33280384]
[1646037360637,4.47,89.521,89.404,2.33280384]
[1646037360842,113.1,89.519,89.404,2.33280384]
[1646037361039,1.74143874,89.508,89.421,53.46933508]
[1646037361243,119.23331998,89.507,89.42,16.776]
[1646037361439,1.69428995,89.504,89.42,16.776]
[1646037361740,4.471,89.503,89.42,16.776]
[1646037362339,4.471,89.503,89.421,51.91089488]
[1646037362740,1.69428995,89.504,89.43,16.7748]
[1646037362944,4.47,89.503,89.43,16.7748]
[1646037363141,46.8381,89.506,89.431,2.34221426]
[1646037363341,46.8381,89.506,89.432,6.0]
[1646037363542,46.8381,89.506,89.422,8.85892461]
[1646037363743,4.47,89.531,89.431,2.65013728]
[1646037363941,113.1,89.549,89.431,2.65013728]
[1646037363942,48.2079,89.53,89.432,6.0]
[1646037364143,6.04992544,89.529,89.45,76.24557548]
[1646037365843,6.04992544,89.529,89.451,6.0]
[1646037366046,6.04992544,89.529,89.46,16.7693]
[1646037370250,6.04992544,89.529,89.461,4.469]
[1646037371749,1.57992544,89.529,89.461,4.469]
[1646037372149,48.2079,89.53,89.47,16.7679]
[1646037372352,10.0,89.5,89.471,55.79415803]
[1646037372952,10.0,89.5,89.472,6.0]
[1646037373152,10.0,89.5,89.481,2.61234116]
[1646037373351,47.3712,89.567,89.483,105.0]
[1646037373557,23.5803,89.587,89.485,2.55160594]
[1646037373754,28.0463,89.609,89.488,2.95744542]
[1646037373952,28.0463,89.609,89.502,2.76497194]
[1646037374162,23.5803,89.609,89.505,2.66634446]
[1646037374350,23.5803,89.609,89.507,113.1]
[1646037374551,4.99167306,89.599,89.521,113.1]
[1646037374752,4.99167306,89.599,89.523,55.58614673]
[1646037374952,4.99167306,89.599,89.524,13.54458302]
[1646037375152,4.99167306,89.599,89.53,16.7518]
[1646037375353,23.5803,89.609,89.531,13.43413836]
[1646037375751,23.5803,89.609,89.532,2.89858951]
[1646037375953,1.77391954,89.639,89.533,10.465]
[1646037376253,1.77391954,89.639,89.533,15.51602095]
[1646037376254,4.465,89.638,89.533,15.51602095]
[1646037376451,5.26339172,89.599,89.55,16.7507]
[1646037376651,5.26339172,89.599,89.551,12.78850845]
[1646037377053,5.26339172,89.599,89.551,8.32350845]
[1646037377452,5.26339172,89.599,89.551,6.0]
[1646037377953,6.91877228,89.599,89.535,4.465]
[1646037378152,11.38377228,89.599,89.531,4.465]
[1646037378352,11.38377228,89.599,89.53,55.48704015]
[1646037379552,11.38377228,89.599,89.53,72.24174015]
[1646037380355,6.91877228,89.599,89.531,4.466]
[1646037381256,6.91877228,89.599,89.532,6.0]
[1646037381455,6.91877228,89.599,89.533,4.466]
[1646037381655,5.26339172,89.599,89.54,16.7538]
[1646037381856,5.26339172,89.599,89.541,10.465]
[1646037382256,5.26339172,89.599,89.542,2.74678921]
[1646037382458,5.26339172,89.599,89.544,56.38379717]
[1646037382656,5.26339172,89.599,89.545,10.465]
[1646037382856,5.26339172,89.599,89.545,4.465]
[1646037383056,5.26339172,89.599,89.55,16.7512]
[1646037384260,3.76339172,89.599,89.55,16.7512]
[1646037385259,5.5677147,89.599,89.551,4.465]
[1646037385558,5.5677147,89.599,89.532,2.74678921]
[1646037385958,5.5677147,89.599,89.533,44.04962202]
[1646037386162,5.5677147,89.599,89.532,2.74678921]
[1646037386362,1.46562467,89.597,89.521,117.065]
[1646037386559,4.466,89.596,89.521,112.6]
[1646037387163,4.466,89.596,89.522,56.33522715]
[1646037387559,4.466,89.596,89.523,4.466]
[1646037387761,1.46562467,89.597,89.523,4.466]
[1646037387960,4.466,89.596,89.521,112.6]
[1646037389165,4.466,89.596,89.51,16.7585]
[1646037389861,16.7614,89.59,89.51,16.7585]
[1646037390061,6.03807612,89.589,89.51,16.7585]
[1646037390262,6.03807612,89.589,89.511,4.466]
[1646037391364,113.1,89.588,89.503,4.466]
[1646037391567,113.1,89.579,89.492,2.7080399]
[1646037391766,113.1,89.577,89.492,2.7080399]
[1646037391967,113.1,89.575,89.492,2.7080399]
[1646037392168,113.1,89.573,89.493,51.83453583]
[1646037392367,4.466,89.572,89.5,16.7613]
[1646037392571,24.704,89.574,89.501,3.466]
[1646037392966,24.704,89.574,89.501,6.21278921]
[1646037393368,24.704,89.574,89.502,2.74678921]
[1646037393568,24.704,89.574,89.503,4.466]
[1646037393769,1.60024041,89.573,89.503,4.466]
[1646037393971,1.60024041,89.573,89.504,2.74678921]
[1646037394172,1.60024041,89.573,89.505,4.466]
[1646037394569,24.704,89.574,89.507,45.05443459]
[1646037394770,24.704,89.574,89.508,4.466]
[1646037394968,24.704,89.574,89.508,7.21278921]
[1646037395170,24.704,89.574,89.51,16.7597]
[1646037395371,24.704,89.574,89.507,45.05443459]
[1646037395372,24.704,89.574,89.511,4.466]
[1646037395570,24.704,89.574,89.512,6.0]